bitfinex/quotes_BTCUSD_20251010
["timestamp","ask_amount","ask_price","bid_price","bid_amount"]
[1760137706538,0.28520205,113390.0,113360.0,0.05]
[1760137706972,0.37881205,113390.0,113360.0,0.05]
[1760137707180,0.17640043,113380.0,113360.0,0.05]
[1760137707390,0.32130859,113390.0,113360.0,0.05]
[1760137707600,0.17639807,113380.0,113360.0,0.05]
[1760137708263,0.4185135,113370.0,113360.0,0.05]
[1760137708563,0.4185135,113370.0,113290.0,0.75295]
[1760137708564,0.18527229,113350.0,113290.0,0.75295]
[1760137708775,0.34,113340.0,113300.0,0.08750055]
[1760137708925,0.34,113340.0,113310.0,0.00275]
[1760137709133,0.34,113340.0,113310.0,0.09025055]
[1760137709694,0.34,113340.0,113310.0,0.09074398]
[1760137709908,0.41465754,113350.0,113310.0,0.09074398]
[1760137710051,0.5058353,113350.0,113310.0,0.09074398]
[1760137710449,0.50614439,113350.0,113310.0,0.09174398]
[1760137711015,0.50614439,113350.0,113310.0,0.09374398]
[1760137711217,0.4061444,113350.0,113310.0,0.09174398]
[1760137711544,0.50614439,113350.0,113310.0,0.09174398]
[1760137711758,0.4997544,113350.0,113310.0,0.09174398]
[1760137711962,0.77619972,113350.0,113310.0,0.09274398]
[1760137712404,0.59975439,113350.0,113310.0,0.09274398]
[1760137713009,0.4997544,113350.0,113310.0,0.09274398]
[1760137713209,0.00882301,113340.0,113310.0,0.00524343]
[1760137713371,0.04767,113340.0,113310.0,0.00249343]
[1760137713572,0.78366464,113350.0,113310.0,0.00524343]
[1760137713978,0.45765439,113350.0,113320.0,0.09025055]
[1760137714178,0.45765439,113350.0,113330.0,0.00275]
[1760137714179,0.0176544,113350.0,113330.0,0.00275]
[1760137714355,0.3107898,113380.0,113340.0,0.00275]
[1760137714356,0.0653244,113380.0,113340.0,0.00275]
[1760137714562,0.51920436,113390.0,113350.0,0.00275]
[1760137714563,0.11765439,113390.0,113350.0,0.00275]
[1760137714817,0.32841309,113400.0,113360.0,0.09025055]
[1760137715052,0.1088191,113390.0,113360.0,0.09025055]
[1760137715254,0.09999999,113390.0,113360.0,0.09025055]
[1760137715411,0.1763834,113390.0,113360.0,0.09025055]
[1760137715567,0.27638339,113390.0,113360.0,0.09025055]
[1760137715980,0.10015122,113390.0,113370.0,0.05]
[1760137716235,0.0176544,113400.0,113380.0,0.09025055]
[1760137716435,0.09524459,113430.0,113390.0,0.0026]
[1760137716613,0.09539619,113430.0,113400.0,0.09010055]
[1760137717161,0.08686944,113430.0,113400.0,0.08832981]
[1760137717358,0.1851694,113410.0,113380.0,0.02054169]
[1760137717572,0.18518539,113400.0,113380.0,0.001]
[1760137717776,0.04767,113390.0,113370.0,0.05]
[1760137718140,0.42511453,113400.0,113370.0,0.051]
[1760137718292,0.16501274,113400.0,113370.0,0.051]
[1760137718498,0.09524459,113410.0,113380.0,0.09010055]
[1760137718696,0.18863055,113420.0,113390.0,0.0026]
[1760137718921,0.16501274,113430.0,113400.0,0.0026]
[1760137718922,0.28038219,113430.0,113400.0,0.0026]
[1760137719126,0.28053379,113430.0,113400.0,0.0026]
[1760137719361,0.17790183,113420.0,113400.0,0.0026]
[1760137719537,0.01734275,113420.0,113390.0,0.08750055]
[1760137719842,0.37158314,113420.0,113390.0,0.09010055]
[1760137720064,0.17790183,113420.0,113390.0,0.09010055]
[1760137720218,0.19524458,113420.0,113390.0,0.09010055]
[1760137720619,0.09524459,113420.0,113390.0,0.09010055]
[1760137721173,0.01734275,113420.0,113400.0,0.09010055]
[1760137721302,0.01749435,113430.0,113410.0,0.0026]
[1760137721508,0.01749435,113430.0,113420.0,0.0026]
[1760137721703,0.01749435,113430.0,113410.0,0.08750055]
[1760137721902,0.02631035,113430.0,113370.0,0.05]
[1760137722102,0.09539619,113430.0,113380.0,0.08750055]
[1760137722385,0.07790184,113420.0,113380.0,0.08750055]
[1760137722670,0.07790184,113420.0,113390.0,0.08750055]
[1760137722841,0.09539619,113430.0,113390.0,0.10803316]
[1760137723042,0.09539619,113430.0,113390.0,0.08750055]
[1760137723390,0.09539619,113430.0,113420.0,0.001]
[1760137723799,0.09539619,113430.0,113420.0,0.08783055]
[1760137724008,0.09539619,113430.0,113420.0,0.10830251]
[1760137724009,0.01749435,113430.0,113420.0,0.10830251]
[1760137724218,0.01749435,113430.0,113420.0,0.08783055]
[1760137724745,0.0002,113450.0,113420.0,0.08883055]
[1760137724951,0.0002,113450.0,113430.0,0.08783055]
[1760137725126,0.0002,113450.0,113430.0,0.10830251]
[1760137725356,0.07790184,113490.0,113440.0,0.10986688]
[1760137725576,0.07790184,113490.0,113460.0,0.08750055]
[1760137725577,0.00050554,113490.0,113460.0,0.08750055]
[1760137725778,0.00050554,113490.0,113470.0,0.08750055]
[1760137726755,0.13307554,113490.0,113470.0,0.08750055]
[1760137727359,0.34,113480.0,113470.0,0.08850055]
[1760137728310,0.34,113480.0,113470.0,0.08950055]
[1760137728765,0.13307554,113490.0,113470.0,0.08850055]
[1760137728966,0.09999999,113530.0,113480.0,0.10217161]
[1760137729174,0.10015161,113530.0,113490.0,0.08750055]
[1760137730086,0.10015161,113530.0,113500.0,0.76717106]
[1760137730369,0.10015161,113530.0,113510.0,0.08750055]
[1760137730370,0.00015162,113530.0,113510.0,0.08750055]
[1760137731664,0.36727139,113540.0,113510.0,0.08750055]
[1760137731826,0.22082017,113530.0,113510.0,0.00015162]
[1760137732030,0.35200039,113520.0,113510.0,0.00015162]
[1760137732253,0.52465855,113520.0,113510.0,0.00015162]
[1760137732529,0.17624472,113480.0,113460.0,0.75]
[1760137732728,0.02727,113470.0,113460.0,0.75]
[1760137732928,0.02727,113470.0,113440.0,0.00015]
[1760137733129,0.02727,113470.0,113440.0,0.08765055]
[1760137733978,0.02727,113470.0,113460.0,0.001]
[1760137734191,0.02727,113470.0,113440.0,0.08765055]
[1760137734385,0.02727,113470.0,113440.0,0.08865055]
[1760137734620,0.24831473,113480.0,113440.0,0.08865055]
[1760137734754,0.18505491,113480.0,113440.0,0.08865055]
[1760137734953,0.18505491,113480.0,113440.0,0.08950055]
[1760137734954,0.18507175,113470.0,113440.0,0.08950055]
[1760137735182,0.4319202,113480.0,113440.0,0.08950055]
[1760137735183,0.13256,113500.0,113450.0,0.1155786]
[1760137735382,0.20463194,113500.0,113460.0,0.00015]
[1760137735611,0.20463194,113500.0,113470.0,0.08765055]
[1760137735822,0.13256,113500.0,113470.0,0.08750055]
[1760137736049,0.13256,113500.0,113480.0,0.00015]
[1760137736347,0.07207194,113510.0,113490.0,0.08750055]
[1760137736479,0.07207194,113510.0,113490.0,0.08765055]
[1760137736871,0.07207194,113500.0,113450.0,0.01848894]
[1760137737075,0.07207194,113500.0,113480.0,0.001]
[1760137737380,0.20463194,113500.0,113460.0,0.08765055]
[1760137737585,0.20463194,113500.0,113470.0,0.00015]
[1760137737784,0.20463194,113500.0,113470.0,0.08765055]
[1760137738408,0.20463194,113500.0,113490.0,0.08750055]
[1760137738780,0.13241,113540.0,113490.0,0.11288277]
[1760137739036,0.13281,113550.0,113500.0,0.14467042]
[1760137739221,0.13281,113550.0,113470.0,0.751]
[1760137739222,0.07207194,113500.0,113470.0,0.751]
[1760137739553,0.18096,113510.0,113470.0,0.83750055]
[1760137739733,0.13241,113510.0,113490.0,0.001]
[1760137739875,0.20448194,113510.0,113490.0,0.001]
[1760137740091,0.48364783,113510.0,113470.0,0.08750055]
[1760137740320,0.13241,113500.0,113470.0,0.08750055]
[1760137740593,0.07207194,113480.0,113430.0,0.74]
[1760137740904,0.22477856,113490.0,113440.0,0.08750055]
[1760137741106,0.46897241,113500.0,113470.0,0.08750055]
[1760137741107,0.13241,113500.0,113470.0,0.08750055]
[1760137741354,0.20448194,113510.0,113470.0,0.08750055]
[1760137741653,0.21187845,113510.0,113470.0,0.08750055]
[1760137741913,0.13241,113510.0,113470.0,0.08750055]
[1760137742121,0.13241,113510.0,113470.0,0.07750055]
[1760137742333,0.61892353,113510.0,113470.0,0.07800609]
[1760137742535,0.25328194,113510.0,113470.0,0.07800609]
[1760137742687,0.13241,113490.0,113470.0,0.07800609]
[1760137742890,0.34,113480.0,113470.0,0.00050554]
[1760137743088,0.34,113480.0,113440.0,0.42550554]
[1760137743410,0.34050482,113480.0,113450.0,0.07750055]
[1760137743570,0.34931694,113480.0,113450.0,0.07750055]
[1760137743951,0.33929746,113480.0,113450.0,0.07750055]
[1760137744078,0.18507304,113470.0,113430.0,0.75]
[1760137744289,0.18507304,113470.0,113440.0,0.08750055]
[1760137744828,0.26377412,113460.0,113450.0,0.001]
[1760137745024,0.47777606,113460.0,113450.0,0.001]
[1760137745226,0.47777606,113460.0,113400.0,0.75]
[1760137745227,0.13141,113430.0,113400.0,0.75]
[1760137745429,0.13141,113430.0,113410.0,0.08750055]
[1760137745976,0.34,113420.0,113410.0,0.08750055]
[1760137746291,0.34,113420.0,113410.0,0.07765183]
[1760137746733,0.34,113420.0,113410.0,0.07865183]
[1760137746935,0.34,113420.0,113410.0,0.07765183]
[1760137747757,0.34,113420.0,113410.0,0.06765183]
[1760137748275,0.72485491,113420.0,113410.0,0.00115128]
[1760137748483,0.72196628,113420.0,113410.0,0.00215128]
[1760137748684,0.72196628,113420.0,113370.0,0.75]
[1760137748685,0.31444762,113400.0,113370.0,0.75]
[1760137748896,0.22557761,113400.0,113370.0,0.0001516]
[1760137749235,0.40194483,113400.0,113370.0,0.0001516]
[1760137749351,0.56714677,113400.0,113370.0,0.0001516]
[1760137749548,0.56714677,113400.0,113330.0,0.75]
[1760137749549,0.47401677,113400.0,113340.0,0.02792805]
[1760137749755,0.40194483,113400.0,113350.0,0.08750055]
[1760137750015,0.47401677,113400.0,113370.0,0.001]
[1760137750239,0.40194483,113400.0,113370.0,0.001]
[1760137750456,0.22557761,113400.0,113370.0,0.001]
[1760137750870,0.56714664,113400.0,113370.0,0.001]
[1760137751227,0.0488,113390.0,113370.0,0.001]
[1760137751544,0.12925872,113400.0,113370.0,0.08750055]
[1760137752198,0.20133066,113400.0,113370.0,0.08750055]
[1760137752378,0.12925872,113400.0,113370.0,0.08850055]
[1760137752959,0.4019462,113400.0,113340.0,0.01907928]
[1760137753165,0.4019462,113400.0,113350.0,0.08750055]
[1760137753322,0.08092071,113390.0,113350.0,0.08750055]
[1760137753531,0.26555927,113400.0,113350.0,0.08750055]
[1760137753532,0.34647998,113400.0,113350.0,0.08750055]
[1760137753731,0.35529832,113400.0,113350.0,0.08750055]
[1760137754022,0.34647998,113400.0,113350.0,0.08750055]
[1760137754217,0.12925872,113400.0,113360.0,0.08750055]
[1760137754416,0.12941009,113400.0,113370.0,0.08750055]
[1760137754622,0.00015137,113400.0,113370.0,0.08750055]
[1760137755327,0.13645192,113400.0,113330.0,0.75]
[1760137755532,0.14527026,113400.0,113370.0,0.002]
[1760137755731,0.23474372,113400.0,113370.0,0.001]
[1760137756130,0.23474372,113400.0,113370.0,0.08950055]
[1760137756131,0.00015137,113400.0,113370.0,0.08950055]
[1760137756508,0.01751947,113400.0,113370.0,0.08950055]
[1760137756753,0.01751947,113400.0,113370.0,0.07950055]
[1760137756754,0.00015137,113400.0,113370.0,0.07950055]
[1760137757162,0.00015137,113400.0,113370.0,0.08050055]
[1760137757371,0.09632122,113370.0,113340.0,0.75]
[1760137757571,0.09632122,113370.0,113310.0,0.002]
[1760137757572,0.25258865,113320.0,113310.0,0.002]
[1760137757793,0.12725,113300.0,113290.0,0.03353]
[1760137757989,0.12277913,113300.0,113290.0,0.03353]
[1760137758543,0.12277913,113300.0,113290.0,0.12383]
[1760137758749,0.12277913,113300.0,113290.0,0.12432343]
[1760137759093,0.58102947,113300.0,113290.0,0.00049343]
[1760137759438,0.23527967,113300.0,113290.0,0.00049343]
[1760137759643,0.12277913,113300.0,113290.0,0.02402343]
[1760137759823,0.12277913,113300.0,113290.0,0.20272398]
[1760137760038,0.17643129,113360.0,113290.0,0.20272398]
[1760137760039,0.03258,113340.0,113290.0,0.20272398]
[1760137760240,0.03258,113340.0,113290.0,0.02502343]
[1760137760241,0.17650821,113310.0,113290.0,0.02502343]
[1760137760384,0.08750055,113310.0,113290.0,0.02502343]
[1760137760585,0.39770034,113300.0,113290.0,0.00149343]
[1760137760762,0.39770034,113300.0,113290.0,0.00249343]
[1760137760763,0.37270035,113300.0,113290.0,0.00249343]
[1760137760967,0.19617785,113300.0,113270.0,0.02582343]
[1760137761173,0.12058471,113300.0,113270.0,0.02582343]
[1760137761434,0.12058471,113300.0,113290.0,0.001]
[1760137761435,0.19668201,113300.0,113290.0,0.001]
[1760137761662,0.12058471,113300.0,113270.0,0.02582343]
[1760137761868,0.00050416,113300.0,113270.0,0.11332398]
[1760137762422,0.00050416,113300.0,113270.0,0.10332398]
[1760137763143,0.00050416,113300.0,113280.0,0.07750055]
[1760137763328,0.26453512,113300.0,113270.0,0.01682343]
[1760137763539,0.08750055,113290.0,113270.0,0.01682343]
[1760137763741,0.16359785,113290.0,113270.0,0.01682343]
[1760137764068,0.08750055,113290.0,113270.0,0.01782343]
[1760137764266,0.10918146,113300.0,113270.0,0.00682343]
[1760137764467,0.16130054,113290.0,113260.0,0.03353]
[1760137764783,0.37078096,113280.0,113270.0,0.002]
[1760137764985,0.05657999,113270.0,113230.0,0.75]
[1760137765302,0.0760973,113260.0,113230.0,0.76598333]
[1760137765706,0.16359785,113260.0,113230.0,0.76598333]
[1760137766340,0.08736121,113250.0,113230.0,0.76598333]
[1760137766594,0.16345851,113250.0,113230.0,0.7501518]
[1760137766826,0.1884585,113250.0,113230.0,0.7501518]
[1760137766993,0.1882275,113250.0,113230.0,0.7501518]
[1760137767963,0.16322751,113250.0,113230.0,0.0011518]
[1760137768194,0.03158,113270.0,113230.0,0.08865235]
[1760137768396,0.16692999,113290.0,113240.0,0.10267355]
[1760137768397,0.0760973,113290.0,113240.0,0.10267355]
[1760137768688,0.18147729,113320.0,113250.0,0.08750055]
[1760137768901,0.0760973,113320.0,113270.0,0.08750055]
[1760137769176,0.0760973,113320.0,113280.0,0.01730974]
[1760137769376,0.0760973,113320.0,113290.0,0.08750055]
[1760137769549,0.02499999,113340.0,113290.0,0.08750055]
[1760137769730,0.08750055,113330.0,113300.0,0.01730974]
[1760137770137,0.08800502,113330.0,113300.0,0.01730974]
[1760137770481,0.00050447,113330.0,113310.0,0.08750055]
[1760137771037,0.2112396,113370.0,113320.0,0.0718]
[1760137771237,0.08750055,113360.0,113320.0,0.0360518]
[1760137771443,0.08750055,113360.0,113320.0,0.0719518]
[1760137772038,0.08750055,113360.0,113320.0,0.08886979]
[1760137772641,0.08750055,113360.0,113320.0,0.0719518]
[1760137772839,0.08750055,113360.0,113320.0,0.0903297]
[1760137773053,0.04581,113330.0,113320.0,0.0001518]
[1760137773299,0.13331055,113330.0,113320.0,0.0001518]
[1760137773557,0.53945632,113330.0,113320.0,0.0001518]
[1760137773804,0.55792118,113330.0,113320.0,0.0001518]
[1760137773947,0.17649898,113320.0,113270.0,0.0359]
[1760137774149,0.13271,113300.0,113270.0,0.0359]
[1760137774399,0.13271,113300.0,113230.0,0.75]
[1760137774400,0.36298055,113290.0,113240.0,0.03605]
[1760137774558,0.09696,113280.0,113240.0,0.03605]
[1760137774932,0.08750055,113270.0,113240.0,0.03605]
[1760137775070,0.23027055,113270.0,113230.0,0.03605]
[1760137775267,0.09696,113260.0,113230.0,0.03605]
[1760137775560,0.18446055,113260.0,113230.0,0.03605]
[1760137775766,0.08750055,113250.0,113230.0,0.03655447]
[1760137775980,0.08750055,113250.0,113230.0,0.02655447]
[1760137776106,0.08750055,113250.0,113240.0,0.001]
[1760137776326,0.17852,113270.0,113240.0,0.001]
[1760137776530,0.08750055,113260.0,113240.0,0.00056981]
[1760137777159,0.08750055,113260.0,113230.0,0.00812428]
[1760137777459,0.08750055,113260.0,113230.0,0.00912428]
[1760137777657,0.08750055,113260.0,113230.0,0.00812428]
[1760137777859,0.17852,113270.0,113230.0,0.08750055]
[1760137778079,0.17852,113270.0,113240.0,0.08750055]
[1760137778288,0.17852,113270.0,113230.0,0.08750055]
[1760137778486,0.17852,113270.0,113230.0,0.08765051]
[1760137778731,0.26602055,113270.0,113230.0,0.07765051]
[1760137778860,0.26602055,113270.0,113210.0,0.74]
[1760137779059,0.26617179,113270.0,113220.0,0.07750055]
[1760137779267,0.26617179,113270.0,113220.0,0.06750055]
[1760137779471,0.26617179,113270.0,113220.0,0.05750055]
[1760137779671,0.26617179,113270.0,113220.0,0.04750055]
[1760137779926,0.26617179,113270.0,113220.0,0.03750055]
[1760137780130,0.36313179,113270.0,113220.0,0.02750055]
[1760137780353,0.22036179,113270.0,113220.0,0.01750055]
[1760137780776,0.08765179,113270.0,113220.0,0.08750055]
[1760137780895,0.08750055,113260.0,113220.0,0.07750055]
[1760137781095,0.08750055,113260.0,113220.0,0.06750055]
[1760137781508,0.08750055,113260.0,113210.0,0.73750055]
[1760137781823,0.08750055,113260.0,113210.0,0.8050011]
[1760137782024,0.08186632,113260.0,113210.0,0.7970011]
[1760137782223,0.08186632,113260.0,113210.0,0.7870011]
[1760137782752,0.04581,113250.0,113210.0,0.68050055]
[1760137783064,0.0195017,113270.0,113220.0,0.08750055]
[1760137783214,0.00015124,113270.0,113220.0,0.07750055]
[1760137783410,0.00015124,113270.0,113220.0,0.06750055]
[1760137783763,0.00015124,113270.0,113220.0,0.04750055]
[1760137783911,0.08765179,113270.0,113220.0,0.03750055]
[1760137784113,0.08765179,113270.0,113220.0,0.02750055]
[1760137784114,0.08750055,113260.0,113220.0,0.02750055]
[1760137784335,0.08750055,113260.0,113220.0,0.01750055]
[1760137784558,0.18446055,113260.0,113210.0,0.74]
[1760137784760,0.18446055,113260.0,113210.0,0.73]
[1760137784968,0.18446055,113260.0,113200.0,0.02400636]
[1760137785180,0.18446055,113260.0,113200.0,0.10150691]
[1760137785377,0.18446055,113260.0,113200.0,0.08750055]
[1760137785581,0.18446055,113260.0,113220.0,0.001]
[1760137785778,0.13271,113250.0,113220.0,0.001]
[1760137786013,0.08750055,113240.0,113220.0,0.001]
[1760137786708,0.07819187,113240.0,113200.0,0.75]
[1760137787086,0.07819187,113240.0,113200.0,0.751]
[1760137787316,0.07819187,113240.0,113200.0,0.75]
[1760137787519,0.13286124,113270.0,113210.0,0.13177841]
[1760137787671,0.08765179,113270.0,113210.0,0.13177841]
[1760137788084,0.08765179,113270.0,113230.0,0.75]
[1760137788284,0.00015124,113270.0,113230.0,0.83750055]
[1760137789285,0.00015124,113270.0,113230.0,0.85130952]
[1760137789684,0.00015124,113270.0,113230.0,0.85230952]
[1760137790119,0.00015124,113270.0,113230.0,0.85330952]
[1760137790318,0.00015124,113270.0,113240.0,0.08750055]
[1760137791064,0.00015124,113270.0,113260.0,0.748926]
[1760137792423,0.00015124,113270.0,113260.0,0.749926]
[1760137793217,0.00015124,113270.0,113260.0,0.83742655]
[1760137793413,0.00015124,113270.0,113260.0,0.83842655]
[1760137794579,0.00015124,113270.0,113260.0,0.83742655]
[1760137794786,0.00015124,113270.0,113260.0,0.83642655]
[1760137794992,0.00015124,113270.0,113260.0,0.83742655]
[1760137795190,0.00015124,113270.0,113260.0,0.83842655]
[1760137795396,0.00015124,113270.0,113260.0,0.750926]
[1760137797554,0.00015124,113270.0,113260.0,0.76859446]
[1760137797755,0.00015124,113270.0,113260.0,0.750926]
[1760137798202,0.00015124,113270.0,113260.0,0.86342654]
[1760137798407,0.00015124,113270.0,113260.0,0.97952384]
[1760137799015,0.00015124,113270.0,113260.0,1.15610868]
[1760137799676,0.00015124,113270.0,113260.0,1.30030106]
[1760137799879,0.00015124,113270.0,113260.0,1.20030107]
[1760137800184,0.00015124,113270.0,113260.0,1.29930106]
[1760137800406,0.11953201,113360.0,113270.0,0.0189675]
[1760137800618,0.08750055,113350.0,113290.0,0.08750055]
[1760137801015,0.00050644,113360.0,113310.0,0.08750055]
[1760137801180,0.00050644,113360.0,113330.0,0.08750055]
[1760137801743,0.00050644,113360.0,113340.0,0.02123442]
[1760137801983,0.00050644,113360.0,113350.0,0.83750055]
[1760137802193,0.00050644,113360.0,113350.0,0.75]
[1760137803237,0.22721699,113360.0,113350.0,0.751]
[1760137803444,0.00050644,113360.0,113350.0,0.75]
[1760137803646,0.00050644,113360.0,113350.0,0.751]
[1760137804028,0.00050644,113360.0,113350.0,0.752]
[1760137805023,0.0004,113390.0,113350.0,1.01594444]
[1760137805223,0.00015182,113390.0,113380.0,0.11250054]
[1760137805356,0.00015182,113390.0,113380.0,0.08750055]
[1760137805535,0.00015182,113390.0,113380.0,0.11354908]
[1760137805735,0.00015182,113390.0,113380.0,0.13854907]
[1760137805958,0.00015182,113390.0,113380.0,0.88854907]
[1760137806553,0.00015182,113390.0,113380.0,0.86250054]
[1760137806747,0.00015182,113390.0,113380.0,0.75]
[1760137806948,0.00015182,113390.0,113380.0,0.83950055]
[1760137807194,0.00015182,113390.0,113380.0,0.75]
[1760137807351,0.08765237,113390.0,113380.0,0.754]
[1760137807880,0.08765237,113390.0,113380.0,0.002]
[1760137808286,0.22686237,113390.0,113380.0,0.002]
[1760137808688,0.34645237,113390.0,113380.0,0.002]
[1760137809252,0.34645237,113390.0,113380.0,0.001]
[1760137809457,0.34645237,113390.0,113380.0,0.002]
[1760137809770,0.34645237,113390.0,113380.0,0.001]
[1760137809975,0.34645237,113390.0,113340.0,0.75]
[1760137810180,0.08750055,113380.0,113340.0,0.75]
[1760137810383,0.17875055,113380.0,113340.0,0.75]
[1760137810828,0.13921,113370.0,113340.0,0.75]
[1760137811039,0.13546055,113370.0,113340.0,0.75]
[1760137812423,0.08750055,113370.0,113340.0,0.76627]
[1760137812978,0.16770182,113390.0,113350.0,0.76627]
[1760137813346,0.08750055,113380.0,113360.0,0.01627]
[1760137813496,0.08750055,113380.0,113360.0,0.03254]
[1760137814181,0.08750055,113380.0,113360.0,0.02863442]
[1760137814388,0.08717105,113380.0,113360.0,0.02863442]
[1760137814799,0.08717105,113380.0,113360.0,0.01627]
[1760137814989,0.13513105,113380.0,113360.0,0.01627]
[1760137817523,0.08750055,113370.0,113350.0,0.75]
[1760137817731,0.13546055,113370.0,113350.0,0.75]
[1760137817948,0.08750055,113370.0,113350.0,0.04161]
[1760137818807,0.13546055,113370.0,113350.0,0.04261]
[1760137819005,0.13546055,113370.0,113350.0,0.04361]
[1760137819210,0.13546055,113370.0,113350.0,0.002]
[1760137819211,0.04796,113360.0,113350.0,0.002]
[1760137819547,0.13546055,113360.0,113350.0,0.002]
[1760137820074,0.08750055,113360.0,113340.0,0.01237]
[1760137820279,0.04796,113380.0,113350.0,0.207]
[1760137820499,0.08750055,113370.0,113360.0,0.13957]
[1760137820672,0.08750055,113370.0,113360.0,0.206]
[1760137821120,0.08750055,113370.0,113360.0,0.04161]
[1760137821298,0.08750055,113370.0,113350.0,0.04361]
[1760137821299,0.13546055,113370.0,113350.0,0.04361]
[1760137821467,0.08750055,113370.0,113350.0,0.14157]
[1760137821670,0.08750055,113370.0,113350.0,0.04161]
[1760137822210,0.08750055,113370.0,113360.0,0.206]
[1760137822377,0.13862697,113390.0,113360.0,0.206]
[1760137822580,0.20709055,113390.0,113370.0,0.13957]
[1760137822787,0.08750055,113390.0,113380.0,0.0788]
[1760137822947,0.04796,113410.0,113380.0,0.17676]
[1760137823144,0.08750055,113410.0,113390.0,0.04161]
[1760137823785,0.08750055,113410.0,113400.0,0.10804]
[1760137824100,0.08750055,113410.0,113400.0,0.206]
[1760137824279,0.11959,113420.0,113400.0,0.29350055]
[1760137824479,0.01666217,113440.0,113410.0,0.10512055]
[1760137824674,0.00015165,113440.0,113410.0,0.08750055]
[1760137824847,0.14925217,113470.0,113420.0,0.10512055]
[1760137825048,0.13259,113470.0,113460.0,0.01747]
[1760137825248,0.01706217,113480.0,113460.0,0.01747]
[1760137825249,0.04836,113480.0,113460.0,0.01647]
[1760137825458,0.22711055,113480.0,113450.0,0.01647]
[1760137825904,0.13546055,113470.0,113450.0,0.01647]
[1760137826302,0.34,113440.0,113410.0,0.54544055]
[1760137826517,0.38796,113420.0,113410.0,0.5455922]
[1760137826846,0.58337272,113420.0,113410.0,0.5455922]
[1760137826974,0.58337272,113420.0,113410.0,0.00015165]
[1760137827398,0.35666217,113420.0,113410.0,0.00015165]
[1760137827602,0.01666217,113430.0,113410.0,0.00015165]
[1760137827799,0.08750055,113430.0,113410.0,0.00015165]
[1760137828308,0.01666217,113440.0,113410.0,0.00115165]
[1760137828511,0.01666217,113440.0,113420.0,0.08750055]
[1760137828512,0.001,113440.0,113420.0,0.08750055]
[1760137828711,0.001,113440.0,113420.0,0.13750055]
[1760137828919,0.0004,113480.0,113430.0,0.75]
[1760137829118,0.08790055,113480.0,113430.0,0.83750055]
[1760137830049,0.08790055,113480.0,113440.0,0.75]
[1760137830628,0.08790055,113480.0,113440.0,0.83750055]
[1760137831016,0.08790055,113480.0,113460.0,0.75]
[1760137831980,0.08790055,113480.0,113450.0,0.75]
[1760137832119,0.08840586,113480.0,113450.0,0.75]
[1760137832511,0.00090531,113480.0,113450.0,0.75]
[1760137832914,0.00090531,113480.0,113460.0,0.75]
[1760137833277,0.08840586,113480.0,113460.0,0.75]
[1760137833727,0.04959,113470.0,113460.0,0.75]
[1760137833933,0.14295,113470.0,113420.0,0.05]
[1760137834142,0.14295,113470.0,113430.0,0.08750055]
[1760137834989,0.04959,113470.0,113430.0,0.08750055]
[1760137835203,0.04959,113470.0,113420.0,0.8]
[1760137835204,0.04959,113440.0,113420.0,0.8]
[1760137835418,0.08750055,113430.0,113420.0,0.8]
[1760137835629,0.13709055,113430.0,113420.0,0.8]
[1760137835855,0.23045055,113430.0,113420.0,0.8]
[1760137836083,0.23045055,113430.0,113390.0,0.0137879]
[1760137836283,0.13709055,113430.0,113390.0,0.0137879]
[1760137836568,0.18086055,113420.0,113390.0,0.01393955]
[1760137836782,0.08750055,113420.0,113390.0,0.01393955]
[1760137838272,0.08750055,113420.0,113390.0,0.00015165]
[1760137838491,0.14295,113410.0,113390.0,0.00015165]
[1760137838697,0.23045055,113410.0,113390.0,0.00015165]
[1760137839420,0.18086055,113400.0,113390.0,0.00015165]
[1760137839624,0.35722739,113400.0,113390.0,0.00015165]
[1760137839825,0.13143835,113380.0,113360.0,0.75]
[1760137840038,0.23045055,113370.0,113360.0,0.75015182]
[1760137840247,0.23045055,113370.0,113360.0,0.00015182]
[1760137840593,0.13143835,113380.0,113360.0,0.00015182]
[1760137840753,0.08750055,113380.0,113360.0,0.00015182]
[1760137840959,0.19769217,113410.0,113370.0,0.75]
[1760137841166,0.08750055,113400.0,113370.0,0.75]
[1760137841364,0.08750055,113400.0,113380.0,0.01671576]
[1760137841634,0.18086055,113400.0,113380.0,0.01671576]
[1760137841834,0.18086055,113400.0,113370.0,0.75]
[1760137841967,0.04959,113390.0,113360.0,0.75015182]
[1760137842335,0.08750055,113400.0,113360.0,0.75015182]
[1760137842336,0.08750055,113380.0,113360.0,0.75015182]
[1760137842551,0.08750055,113390.0,113360.0,0.75015182]
[1760137842755,0.18103,113410.0,113360.0,0.85279465]
[1760137842959,0.21894055,113410.0,113380.0,0.75]
[1760137843230,0.08750055,113400.0,113380.0,0.75]
[1760137843863,0.29105217,113430.0,113380.0,0.75]
[1760137844039,0.08750055,113420.0,113370.0,0.75]
[1760137844235,0.09336,113410.0,113370.0,0.75]
[1760137844437,0.08750055,113400.0,113370.0,0.75]
[1760137844644,0.18086055,113400.0,113370.0,0.75]
[1760137845111,0.18086055,113400.0,113360.0,0.00015182]
[1760137845112,0.04959,113380.0,113360.0,0.75015182]
[1760137845440,0.23102046,113370.0,113360.0,0.5747177]
[1760137845597,0.15375272,113370.0,113360.0,0.5747177]
[1760137845920,0.24618272,113370.0,113350.0,0.005]
[1760137846081,0.24633415,113370.0,113350.0,0.005]
[1760137846650,0.09243,113360.0,113330.0,0.77683325]
[1760137846852,0.22952055,113350.0,113330.0,0.73505325]
[1760137847028,0.24618272,113350.0,113310.0,0.02788]
[1760137847172,0.24618272,113350.0,113310.0,0.12379]
[1760137847379,0.15375272,113350.0,113310.0,0.12379]
[1760137847705,0.15375272,113350.0,113320.0,0.09591]
[1760137847911,0.15375272,113350.0,113310.0,0.02788]
[1760137848171,0.15375272,113350.0,113310.0,0.77788]
[1760137848366,0.04959,113320.0,113310.0,0.75]
[1760137848577,0.15375272,113320.0,113310.0,0.75]
[1760137848761,0.10416272,113320.0,113310.0,0.75]
[1760137848976,0.10416272,113320.0,113290.0,0.77788]
[1760137849281,0.01666217,113320.0,113300.0,0.18675055]
[1760137849456,0.01681349,113320.0,113310.0,0.09925]
[1760137849669,0.01781349,113320.0,113310.0,0.09925]
[1760137849844,0.10531404,113320.0,113290.0,0.87713]
[1760137850049,0.08750055,113310.0,113300.0,0.75]
[1760137850251,0.10416272,113310.0,113300.0,0.75]
[1760137851049,0.10416272,113310.0,113290.0,0.02788]
[1760137851266,0.10416272,113310.0,113270.0,0.79178]
[1760137851471,0.04536,113300.0,113270.0,0.77521405]